bitfinex/quotes_ETHUSD_20251116
["timestamp","ask_amount","ask_price","bid_price","bid_amount"]
[1763313216288,8.49989619,3062.9,3061.8,0.4916]
[1763313216289,1.5392448,3062.8,3061.8,0.4916]
[1763313216491,0.405504,3062.1,3061.8,0.4916]
[1763313216700,0.405504,3061.9,3061.8,0.4916]
[1763313216905,1.39399619,3061.9,3061.8,0.9495]
[1763313217157,1.39399619,3061.9,3061.8,1.2863879]
[1763313221442,1.39399619,3061.9,3061.8,1.2873879]
[1763313221625,1.39599619,3061.9,3061.8,1.2873879]
[1763313225250,0.99049219,3061.9,3061.8,3.36135106]
[1763313225448,0.30003546,3061.9,3061.8,3.36135106]
[1763313226159,0.002,3061.9,3061.8,3.36135106]
[1763313226533,0.002,3061.9,3061.8,6.66006422]
[1763313226729,0.002,3062.3,3061.8,6.6274037]
[1763313227062,0.002,3062.6,3062.3,1.1337408]
[1763313227262,0.002,3062.6,3062.5,0.4792]
[1763313227779,0.002,3062.6,3062.5,1.91857787]
[1763313228261,0.30282648,3063.2,3062.5,1.91857787]
[1763313228464,0.69814196,3063.9,3063.7,0.672]
[1763313228654,0.69829308,3064.2,3063.9,0.4792]
[1763313228848,0.2729,3064.0,3063.4,0.4579]
[1763313229152,0.30300109,3063.9,3063.4,1.27430834]
[1763313229460,0.405504,3063.7,3063.5,0.1383]
[1763313229668,0.70850509,3063.6,3063.5,0.1383]
[1763313230133,0.70850509,3063.6,3063.5,0.4792]
[1763313230455,0.405504,3063.5,3062.6,1.1337408]
[1763313230642,0.30300109,3063.4,3062.6,2.05859845]
[1763313230966,0.405504,3063.5,3062.6,2.05859845]
[1763313231167,0.405504,3063.3,3062.2,8.30763567]
[1763313231368,0.405504,3063.1,3062.2,8.76553567]
[1763313231671,0.405504,3062.9,3062.2,0.1928]
[1763313231876,0.1828,3063.9,3062.6,8.11483567]
[1763313231877,1.5674967,3063.7,3062.6,8.11483567]
[1763313232234,0.405504,3063.5,3062.3,1.1337408]
[1763313232399,0.405504,3063.3,3062.3,1.1337408]
[1763313232692,0.30228348,3063.2,3062.3,1.1337408]
[1763313232989,0.405504,3063.0,3062.3,1.5916408]
[1763313233393,0.405504,3063.0,3062.4,0.4579]
[1763313233570,0.405504,3063.4,3062.9,0.4792]
[1763313233746,0.405504,3063.2,3062.9,0.4792]
[1763313233941,0.405504,3063.0,3062.9,0.4792]
[1763313234143,0.70778274,3063.0,3062.9,0.4792]
[1763313234948,0.70778274,3063.0,3062.6,0.4579]
[1763313235170,0.405504,3063.4,3062.3,1.1337408]
[1763313235347,0.405504,3063.1,3062.3,1.1337408]
[1763313235695,0.30243249,3063.0,3062.3,1.5916408]
[1763313235846,0.405504,3063.1,3062.3,1.1337408]
[1763313236157,0.30242103,3063.0,3062.4,0.4579]
[1763313236357,0.405504,3062.9,3062.4,0.4579]
[1763313236552,0.405504,3063.5,3062.9,0.4792]
[1763313236757,0.405504,3063.3,3062.4,0.4579]
[1763313236970,0.405504,3063.1,3062.4,0.4579]
[1763313237144,0.405504,3063.7,3062.4,0.4579]
[1763313237342,0.405504,3063.5,3062.4,0.4579]
[1763313237542,0.405504,3063.3,3062.5,0.03265306]
[1763313237776,0.405504,3063.1,3062.6,8.11483567]
[1763313237951,0.405504,3063.1,3062.6,8.57273567]
[1763313238153,0.405504,3063.5,3063.0,0.4792]
[1763313238354,0.30236899,3063.4,3063.0,0.4792]
[1763313238571,0.30236899,3063.3,3063.0,0.4792]
[1763313238750,0.405504,3063.1,3063.0,0.4792]
[1763313239145,0.405504,3063.5,3063.0,0.4792]
[1763313239454,0.30234362,3063.4,3063.0,0.4792]
[1763313239655,0.405504,3063.2,3063.0,0.4792]
[1763313240267,0.405504,3063.4,3063.0,0.4792]
[1763313240580,0.405504,3063.4,3062.5,0.4579]
[1763313240581,0.405504,3063.0,3062.5,0.4579]
[1763313240885,0.405504,3062.8,3062.3,0.001]
[1763313241262,0.405504,3063.0,3062.3,0.4589]
[1763313241459,0.405504,3063.0,3062.3,0.63744408]
[1763313241682,0.002,3063.5,3062.3,0.63744408]
[1763313241683,0.407504,3063.5,3062.9,0.4792]
[1763313241983,0.405504,3063.3,3062.4,0.4579]
[1763313242147,0.405504,3063.3,3062.5,0.4579]
[1763313242346,0.4653,3063.4,3062.5,0.4579]
[1763313242582,0.70774428,3063.3,3062.5,0.4579]
[1763313242778,0.405504,3063.3,3062.5,0.4579]
[1763313243675,0.4653,3063.3,3062.5,0.4579]
[1763313243876,0.405504,3063.2,3062.3,0.001]
[1763313244277,0.405504,3063.1,3062.3,0.001]
[1763313244481,0.405504,3063.1,3062.3,0.4589]
[1763313245676,0.405504,3063.4,3062.3,0.4589]
[1763313246188,0.002,3063.5,3062.4,8.49863033]
[1763313246407,0.002,3063.5,3063.3,0.4607]
[1763313246701,0.407504,3063.5,3063.3,0.4607]
[1763313246871,0.002,3063.5,3063.3,0.4607]
[1763313247187,0.002,3063.5,3062.9,0.4554]
[1763313247188,0.405504,3063.3,3062.9,0.4554]
[1763313247489,0.405504,3063.3,3062.5,2.48489383]
[1763313247690,0.405504,3063.3,3062.5,1.35115303]
[1763313247867,0.405504,3063.3,3062.6,1.44037834]
[1763313248192,0.002,3063.5,3063.2,0.4607]
[1763313248489,0.407504,3063.5,3062.7,0.4554]
[1763313249768,0.002,3063.5,3062.7,0.4554]
[1763313250355,0.407504,3063.5,3062.7,0.4554]
[1763313250556,0.884104,3063.5,3062.7,0.4554]
[1763313250771,0.884104,3063.5,3062.5,1.1337408]
[1763313250956,0.405504,3063.3,3062.5,1.1337408]
[1763313251175,0.405504,3063.3,3062.4,8.95403033]
[1763313251397,0.405504,3063.3,3062.5,0.4554]
[1763313251600,0.882104,3063.3,3062.5,0.4554]
[1763313252289,0.002,3063.5,3062.5,0.4554]
[1763313252493,0.30258475,3063.4,3062.6,0.89540303]
[1763313252801,0.30258475,3063.4,3062.5,0.4554]
[1763313253796,0.77918475,3063.4,3062.5,0.4554]
[1763313253969,0.30258475,3063.3,3062.5,0.4554]
[1763313254162,0.405504,3063.2,3062.5,0.4554]
[1763313255598,0.002,3063.5,3062.5,0.4554]
[1763313255779,0.70849515,3063.4,3062.5,0.4554]
[1763313255977,0.405504,3063.2,3062.5,0.4554]
[1763313256396,0.405504,3063.0,3062.5,0.4554]
[1763313256766,0.405504,3063.4,3062.9,0.4581]
[1763313256968,0.405504,3063.2,3062.9,0.4581]
[1763313257165,0.405504,3063.0,3062.9,0.4581]
[1763313257404,0.405504,3063.0,3062.5,0.4934]
[1763313257602,0.405504,3063.0,3062.9,0.4581]
[1763313258696,0.405504,3063.0,3062.5,0.4944]
[1763313258697,0.879904,3063.0,3062.5,0.4944]
[1763313258887,0.4744,3063.0,3062.5,0.4944]
[1763313259417,0.405504,3062.9,3062.5,0.001]
[1763313259783,0.4744,3062.6,3062.5,0.001]
[1763313259984,0.002,3063.4,3062.5,0.001]
[1763313260186,0.405504,3063.2,3062.5,0.4944]
[1763313260400,0.405504,3063.0,3062.5,0.4944]
[1763313260908,0.5007,3063.4,3062.5,0.001]
[1763313261095,0.7084348,3063.3,3062.6,0.4934]
[1763313261295,0.3029308,3063.2,3062.6,0.4934]
[1763313261499,0.405504,3063.0,3062.6,0.4934]
[1763313261884,0.405504,3063.0,3062.9,0.4581]
[1763313262090,0.70843568,3063.0,3062.9,0.4581]
[1763313262885,0.70843568,3063.0,3062.9,6.70612439]
[1763313264005,0.70843568,3063.0,3062.9,6.24802439]
[1763313265910,1.18283568,3063.0,3062.9,6.24802439]
[1763313266691,1.68153568,3063.0,3062.6,6.24802439]
[1763313266892,0.529804,3062.6,3062.5,0.001]
[1763313267093,1.3311173,3062.6,3062.5,0.001]
[1763313267503,0.8324173,3062.6,3062.5,0.001]
[1763313267704,0.7081173,3062.6,3062.5,0.4591]
[1763313267900,0.7081173,3062.6,3062.5,0.001]
[1763313268229,0.69926462,3063.4,3062.5,0.9525]
[1763313268402,0.30258383,3063.3,3062.8,6.70612439]
[1763313268610,0.30258383,3063.2,3062.8,6.70612439]
[1763313268913,0.30258383,3063.1,3062.8,7.19952439]
[1763313269114,0.30258383,3063.0,3062.8,7.19952439]
[1763313269423,0.405504,3063.3,3062.8,6.24802439]
[1763313269722,0.405504,3063.1,3062.7,6.24802439]
[1763313269900,0.30252684,3063.0,3062.7,6.24802439]
[1763313270110,0.405504,3063.1,3062.7,6.74142439]
[1763313270294,0.70808787,3063.0,3062.9,0.4581]
[1763313270493,0.70808787,3063.0,3062.7,6.74142439]
[1763313270739,0.405504,3063.0,3062.9,0.4581]
[1763313270890,0.70808909,3063.0,3062.7,6.24802439]
[1763313271099,0.405504,3063.0,3062.9,0.4581]
[1763313271308,0.70809247,3063.0,3062.9,0.4581]
[1763313271928,0.002,3063.4,3062.9,1.67145244]
[1763313272130,0.002,3063.4,3063.3,6.84952439]
[1763313272427,0.002,3063.4,3063.3,7.98326519]
[1763313272628,0.002,3063.4,3063.3,8.47666519]
[1763313272830,0.002,3063.4,3063.3,9.32433171]
[1763313273143,0.002,3063.4,3063.3,2.2286408]
[1763313273310,0.002,3063.4,3063.3,1.7352408]
[1763313273649,0.002,3063.4,3063.3,8.47666519]
[1763313274136,0.002,3063.4,3063.3,7.98326519]
[1763313274345,0.002,3063.4,3063.0,6.39142439]
[1763313274538,0.4764,3063.4,3063.0,6.39142439]
[1763313274950,0.4764,3063.4,3062.8,0.4934]
[1763313275835,0.002,3063.4,3062.8,0.4934]
[1763313277100,0.002,3063.4,3062.9,0.001]
[1763313277733,0.002,3063.4,3062.9,0.4548]
[1763313277949,0.002,3063.4,3063.3,0.4514]
[1763313278233,0.002,3063.4,3063.3,0.5948]
[1763313278413,0.002,3063.4,3063.3,1.0486]
[1763313278815,0.002,3063.4,3063.3,2.1823408]
[1763313279004,0.002,3063.4,3063.3,2.72702819]
[1763313279207,0.002,3063.4,3063.3,14.48824396]
[1763313279414,0.002,3063.8,3063.3,14.48824396]
[1763313279415,0.002,3063.8,3063.4,2.0389408]
[1763313279617,0.30212583,3065.4,3064.1,9.63050321]
[1763313279836,0.30212583,3065.6,3064.1,10.26220321]
[1763313280001,0.30212583,3065.5,3064.1,15.00582458]
[1763313280203,0.30212583,3065.7,3064.1,15.00582458]
[1763313280402,0.30212583,3065.7,3064.2,1.1337408]
[1763313280732,0.30184056,3065.9,3064.2,1.5875408]
[1763313280916,0.1929,3066.0,3064.3,0.4538]
[1763313281336,0.6602,3066.0,3064.3,0.4538]
[1763313281875,0.002,3066.2,3064.3,0.4538]
[1763313281876,0.002,3066.2,3065.9,0.4514]
[1763313282167,0.002,3066.2,3066.1,0.4514]
[1763313284347,0.002,3066.2,3065.9,0.1877]
[1763313284656,0.002,3066.2,3065.9,0.6415]
[1763313284878,0.002,3066.2,3065.9,0.1877]
[1763313285240,0.4894,3066.0,3065.2,0.1877]
[1763313285620,0.4894,3066.0,3065.2,0.6415]
[1763313285821,0.4894,3066.0,3065.2,0.1877]
[1763313286150,0.4894,3066.0,3065.3,0.4538]
[1763313286940,1.001304,3065.9,3064.8,9.13086241]
[1763313287138,1.001304,3065.9,3064.9,1.1337408]
[1763313287323,0.405504,3065.7,3064.8,9.54476865]
[1763313287522,0.405504,3065.7,3064.8,8.67706241]
[1763313287833,0.405504,3065.5,3064.9,1.5875408]
[1763313288234,0.405504,3065.8,3064.9,0.4538]
[1763313288440,0.405504,3065.8,3064.8,8.67706241]
[1763313288643,0.407504,3066.2,3065.7,0.4514]
[1763313288978,0.874804,3066.2,3065.0,0.4538]
[1763313289278,0.874804,3066.2,3065.1,0.1877]
[1763313289480,0.002,3066.2,3065.1,0.36522408]
[1763313289690,0.405504,3066.1,3065.1,0.81902408]
[1763313290190,0.405504,3066.1,3065.2,0.4538]
[1763313290334,0.002,3066.2,3065.2,0.4538]
[1763313290535,0.405504,3066.0,3064.9,1.1337408]
[1763313290765,0.405504,3066.0,3064.9,2.16020112]
[1763313290980,0.405504,3065.8,3064.9,2.16020112]
[1763313291398,0.405504,3065.6,3064.9,2.16020112]
[1763313292463,0.405504,3065.4,3064.7,0.1803]
[1763313293237,0.405504,3065.8,3064.8,1.1337408]
[1763313293643,0.6602,3065.9,3064.9,0.4538]
[1763313294255,0.405504,3065.8,3064.9,0.4538]
[1763313295266,0.405504,3065.6,3064.9,1.02646032]
[1763313296459,0.407504,3065.8,3064.9,1.02646032]
[1763313296799,0.407504,3065.8,3065.0,0.4538]
[1763313297165,0.407504,3065.8,3065.1,0.1877]
[1763313297365,0.405504,3065.6,3064.8,1.1337408]
[1763313297682,0.872804,3065.6,3064.9,1.02646032]
[1763313298261,0.405504,3065.6,3064.9,1.02646032]
[1763313298462,0.407504,3065.8,3064.9,1.02646032]
[1763313298707,0.4673,3065.5,3064.9,1.02646032]
[1763313299220,0.4673,3065.5,3064.7,0.1803]
[1763313299364,0.4673,3065.5,3064.7,0.6341]
[1763313299564,0.407504,3065.8,3065.4,0.6391]
[1763313299791,0.002,3065.8,3065.4,0.6391]
[1763313299982,0.002,3065.8,3065.7,0.4514]
[1763313300504,0.002,3065.8,3065.7,0.9052]
[1763313300708,0.002,3065.8,3065.7,13.79760098]
[1763313300869,0.002,3065.8,3065.7,15.50356186]
[1763313301267,0.002,3066.2,3065.7,15.50356186]
[1763313301508,0.002,3066.2,3066.1,0.4514]
[1763313302005,0.002,3066.2,3066.1,0.9052]
[1763313302585,0.002,3066.2,3066.1,4.16667222]
[1763313302903,0.002,3066.2,3066.1,2.32796658]
[1763313303102,0.002,3066.2,3065.4,0.1877]
[1763313303103,0.9587,3066.2,3065.6,1.1337408]
[1763313303302,0.4914,3066.2,3065.6,1.1337408]
[1763313303504,0.002,3066.2,3065.6,1.5875408]
[1763313303807,0.002,3066.2,3064.7,0.1803]
[1763313303808,0.405504,3065.6,3064.7,0.1803]
[1763313303972,0.597804,3065.6,3064.7,0.1803]
[1763313304302,0.597804,3065.6,3064.8,0.4538]
[1763313304506,0.002,3066.2,3065.5,0.6391]
[1763313304671,0.002,3066.2,3065.6,0.4504]
[1763313304872,0.002,3066.2,3065.6,0.9184]
[1763313305885,0.4861,3065.7,3065.4,1.1337408]
[1763313306199,0.4943,3066.1,3065.4,1.1337408]
[1763313306706,0.002,3066.2,3065.4,2.057249]
[1763313307085,0.002,3066.2,3065.5,0.468]
[1763313308371,0.002,3066.2,3065.4,2.057249]
[1763313308606,0.4943,3066.1,3065.4,2.057249]
[1763313309409,0.002,3066.2,3066.0,0.4504]
[1763313309596,0.002,3066.2,3066.1,1.49327412]
[1763313309801,0.002,3066.2,3066.1,1.96127412]
[1763313310209,0.002,3066.5,3066.1,1.96127412]
[1763313310407,0.002,3066.5,3066.4,9.68548199]
[1763313310723,0.002,3066.5,3066.4,10.15348199]
[1763313311019,0.002,3066.5,3066.4,14.42998333]
[1763313311379,0.002,3066.5,3066.4,11.16883019]
[1763313311713,0.002,3066.5,3066.4,14.42998333]
[1763313314310,0.002,3066.9,3066.5,2.0521408]
[1763313314483,0.002,3066.9,3066.8,0.4504]
[1763313314879,0.002,3066.9,3066.4,2.149089]
[1763313315085,0.002,3066.9,3066.5,1.49304302]
[1763313315485,0.002,3066.9,3066.8,1.6225408]
[1763313316239,0.4856,3066.9,3066.5,1.02504302]
[1763313316528,0.002,3066.9,3066.4,1.1337408]
[1763313316819,0.002,3066.9,3066.8,9.72388199]
[1763313317205,0.002,3066.9,3066.8,10.69627019]
[1763313317923,0.002,3066.9,3066.8,1.1337408]
[1763313318112,0.002,3066.9,3066.8,1.6225408]
[1763313318810,0.002,3066.9,3066.8,1.1337408]
[1763313320303,0.002,3066.9,3066.8,1.6225408]
[1763313320731,0.002,3066.9,3066.8,2.1108408]
[1763313320939,0.002,3066.9,3066.8,3.132059]
[1763313321829,0.002,3066.9,3066.8,2.643759]
[1763313322895,0.4856,3066.9,3066.8,1.1337408]
[1763313323252,0.5958,3066.9,3066.8,1.1337408]
[1763313323454,0.34284235,3067.2,3066.9,1.1337408]
[1763313323652,0.34284235,3067.2,3066.4,4.88316014]
[1763313323932,0.002,3067.3,3066.4,4.88316014]
[1763313324134,0.002,3067.3,3066.8,1.1337408]
[1763313327157,0.002,3067.3,3066.8,1.6220408]
[1763313327560,0.002,3067.3,3066.8,1.1337408]
[1763313328345,0.002,3067.3,3066.8,1.6220408]
[1763313328751,0.002,3067.3,3066.9,0.4883]
[1763313329261,0.002,3067.3,3066.9,1.4606382]
[1763313329574,0.002,3067.3,3066.9,0.9723382]
[1763313329729,0.002,3067.3,3067.0,0.4883]
[1763313329930,0.002,3067.3,3067.2,0.4888]
[1763313330337,0.002,3067.3,3066.9,0.9723382]
[1763313330543,0.002,3067.3,3067.0,0.2106079]
[1763313331137,0.4335,3067.1,3067.0,0.2106079]
[1763313331355,0.5013,3067.3,3067.0,0.2106079]
[1763313331550,0.002,3067.3,3067.0,0.2106079]
[1763313331756,0.002,3067.3,3067.0,0.6989079]
[1763313331942,0.002,3067.3,3067.0,0.2106079]
[1763313335949,0.002,3067.3,3067.2,0.467]
[1763313336385,0.002,3067.3,3067.0,0.2106079]
[1763313336602,0.002,3067.3,3067.2,0.467]
[1763313336766,0.002,3067.3,3067.2,1.6007408]
[1763313339486,0.002,3067.3,3067.2,1.1337408]
[1763313339682,0.4506,3067.3,3067.2,1.1337408]
[1763313339883,0.002,3067.3,3067.2,1.1337408]
[1763313340587,0.002,3067.3,3067.2,1.6007408]
[1763313341405,0.4506,3067.3,3067.2,1.1337408]
[1763313344009,0.9349,3067.3,3067.2,1.1337408]
[1763313345807,0.4506,3067.3,3067.2,1.1337408]
[1763313346015,0.87116267,3068.9,3068.2,0.5746]
[1763313346216,0.87478241,3070.1,3069.1,0.2988]
[1763313346428,1.74848731,3072.6,3070.0,12.01664071]
[1763313346576,0.97574413,3072.5,3072.4,8.10134119]
[1763313346916,0.1869,3073.0,3072.4,2.45880663]
[1763313347213,0.1869,3072.9,3072.4,2.34930611]
[1763313347413,0.1869,3072.9,3072.7,1.1635873]
[1763313347621,0.1869,3072.9,3072.8,1.86173968]
[1763313347823,0.1869,3072.9,3072.8,1.86137968]
[1763313348028,0.1869,3072.9,3072.8,2.44353333]
[1763313348331,0.1869,3073.0,3072.8,2.44353333]
[1763313348332,0.1869,3074.7,3073.0,1.6007408]
[1763313348480,0.1869,3074.7,3074.6,8.10134119]
[1763313348799,0.1869,3074.7,3074.6,0.69815238]
[1763313348800,0.4847,3074.7,3074.6,0.69815238]
[1763313348972,0.4847,3074.7,3074.0,0.86717814]
[1763313349176,0.4847,3074.7,3074.1,0.6937742]
[1763313349414,0.1869,3073.9,3073.5,0.86717814]
[1763313349579,0.1869,3073.9,3073.6,0.69164971]
[1763313349911,0.1869,3073.9,3073.5,0.86717814]
[1763313349912,0.4847,3073.8,3073.2,0.86717814]
[1763313350102,0.4847,3073.8,3073.3,0.69171736]
[1763313350304,0.4847,3073.8,3073.4,0.69171736]
[1763313350608,0.1869,3073.9,3073.5,0.69000398]
[1763313350811,0.4847,3074.3,3073.7,8.10134119]
[1763313351023,0.1869,3074.9,3074.2,8.10134119]
[1763313351313,0.4847,3075.4,3074.6,8.10134119]
[1763313351836,0.1869,3075.9,3074.6,8.10134119]
[1763313351837,0.1869,3075.9,3075.3,3.34811189]
[1763313351974,0.1869,3075.9,3075.6,8.10134119]
[1763313352178,0.6716,3075.9,3075.6,8.10134119]
[1763313352436,0.6716,3075.9,3075.3,1.1337408]
[1763313352912,0.6716,3075.9,3075.2,8.10134119]
[1763313352913,0.1869,3076.2,3075.6,8.10134119]
[1763313353429,0.1869,3076.8,3076.1,0.1929]
[1763313353636,0.1869,3076.8,3076.4,8.10134119]
[1763313353916,0.1869,3076.8,3075.3,0.86717814]
[1763313353917,0.6716,3076.8,3075.0,8.10134119]
[1763313354078,0.1869,3075.8,3075.0,8.10134119]
[1763313354282,0.6716,3075.8,3075.0,8.10134119]
[1763313356111,0.6716,3075.8,3075.1,0.1929]
[1763313356386,0.4847,3076.6,3075.4,8.10134119]
[1763313356586,0.4847,3076.6,3075.1,2.5337249]
[1763313356587,0.4847,3076.6,3075.9,8.10134119]
[1763313356947,0.1869,3076.8,3075.9,8.10134119]
[1763313357420,8.10134119,3078.6,3076.7,8.10134119]
[1763313357421,0.4847,3077.4,3076.7,8.10134119]
[1763313357723,0.4847,3077.4,3076.4,1.1337408]
[1763313358236,0.4847,3077.4,3075.3,0.405504]
[1763313358237,0.1869,3076.5,3075.8,1.1337408]
[1763313358519,0.1869,3076.5,3075.4,1.1337408]
[1763313358694,0.890204,3076.4,3075.4,1.1337408]
[1763313358894,0.4847,3076.4,3075.4,1.1337408]
[1763313359698,0.1869,3076.5,3075.7,8.10134119]
[1763313360184,0.6716,3076.9,3075.8,1.1337408]
[1763313360631,0.405504,3077.3,3076.1,8.10134119]
[1763313360632,0.4847,3077.3,3076.1,8.10134119]
[1763313360785,0.6716,3077.5,3076.5,8.10134119]
[1763313360982,0.6716,3077.5,3076.2,1.1337408]
[1763313361293,0.51002397,3077.7,3076.9,8.10134119]
[1763313361607,0.1869,3078.0,3077.0,1.1337408]
[1763313361812,0.1869,3078.0,3077.3,8.10134119]
[1763313362012,0.1869,3078.5,3077.7,8.10134119]
[1763313362395,0.1869,3078.9,3078.1,8.10134119]
[1763313362745,0.4847,3079.3,3078.5,8.10134119]
[1763313362884,0.1869,3079.7,3078.4,1.1337408]
[1763313363090,0.1869,3079.7,3077.8,0.1398]
[1763313363091,0.4847,3079.5,3077.8,0.1398]
[1763313363289,0.1869,3078.5,3077.6,0.1929]
[1763313363488,0.1869,3078.5,3077.2,1.1337408]
[1763313363489,0.1869,3078.5,3076.9,8.80904857]
[1763313363732,0.1869,3077.5,3076.6,0.1929]
[1763313363896,0.1869,3077.5,3076.2,0.9235082]
[1763313363897,0.405504,3077.4,3075.9,8.80904857]
[1763313364102,0.890204,3077.4,3075.4,9.73255677]
[1763313364289,0.890204,3077.4,3075.1,0.1929]
[1763313364290,0.890204,3077.4,3075.9,8.80904857]
[1763313364490,0.890204,3077.4,3076.0,1.6099408]
[1763313364491,0.405504,3077.4,3076.0,1.6099408]
[1763313364693,0.1961,3077.8,3076.5,1.1337408]
[1763313365087,0.4757,3078.3,3077.0,1.1337408]
[1763313365296,0.1869,3078.5,3077.0,2.12801974]
[1763313365501,0.1869,3078.5,3077.5,1.1337408]
[1763313365700,0.1961,3078.9,3078.0,1.1337408]
[1763313365925,1.466,3079.9,3078.1,0.4762]
[1763313365926,0.4757,3079.8,3078.1,0.4762]
[1763313366221,0.4757,3079.8,3078.5,1.1337408]
[1763313366432,0.1961,3080.2,3079.0,1.1337408]
[1763313366590,0.1961,3080.2,3079.1,0.6639]
[1763313366792,0.1961,3082.1,3079.1,0.6639]
[1763313366793,0.1961,3080.8,3080.1,0.1929]
[1763313367093,0.1961,3081.4,3080.2,0.4762]
[1763313367303,0.1961,3081.8,3080.5,1.1337408]
[1763313367693,0.4757,3082.0,3080.6,0.4762]
[1763313367895,0.1961,3082.1,3081.0,1.1337408]
[1763313368549,0.4757,3082.6,3081.4,8.80904857]
[1763313368693,0.5092329,3083.8,3082.5,0.0873]
[1763313368893,0.6718,3084.0,3081.1,4.98136502]
[1763313368894,0.4757,3083.9,3081.9,0.1981]
[1763313369141,0.1961,3084.0,3081.9,0.1981]
[1763313369142,0.4757,3083.8,3081.9,0.1981]
[1763313369340,0.1961,3084.3,3082.0,0.4762]
[1763313369704,0.4757,3084.2,3082.1,0.405504]
[1763313370124,0.4757,3084.2,3082.4,1.1337408]
[1763313370324,0.4757,3084.8,3082.6,0.405504]
[1763313370492,0.1961,3085.0,3082.6,0.405504]
[1763313370693,0.1961,3085.4,3082.8,0.405504]
[1763313370931,0.1961,3086.5,3083.4,1.5392448]
[1763313371356,0.4757,3086.4,3083.5,0.4762]
[1763313371610,0.1961,3086.5,3083.6,0.405504]
[1763313371900,0.1961,3086.5,3083.5,1.13571136]
[1763313371901,0.4757,3086.6,3084.4,1.5392448]
[1763313372046,0.1961,3087.0,3083.7,3.2428576]
[1763313372047,0.4757,3086.4,3083.7,3.2428576]
[1763313372408,0.05,3086.1,3083.1,0.4762]
[1763313372699,0.405504,3086.0,3083.0,0.4762]
[1763313372844,0.881204,3086.0,3083.0,0.4762]
[1763313373047,0.4757,3086.0,3083.0,0.001645]
[1763313373244,0.405504,3085.8,3082.9,0.0821]
[1763313373501,0.455504,3085.8,3082.9,0.0821]
[1763313373696,0.405504,3085.6,3082.9,0.0821]
[1763313373982,0.405504,3085.6,3081.4,6.49055624]
[1763313374183,0.4757,3085.5,3082.3,9.73299159]
[1763313374385,0.1961,3086.3,3082.5,0.405504]
[1763313374686,0.4757,3086.8,3083.5,0.5]
[1763313374885,0.4757,3086.8,3083.6,1.07126865]
[1763313375045,0.4757,3086.8,3083.4,0.405504]
[1763313375265,0.4757,3086.8,3083.8,0.405504]
[1763313375465,0.4757,3086.8,3083.7,0.1041]
[1763313375660,0.405504,3086.7,3083.4,0.1041]
[1763313375992,0.405504,3086.5,3083.4,0.1041]
[1763313376297,0.405504,3086.2,3082.9,0.1041]
[1763313376501,0.405504,3085.7,3082.2,0.8461496]
[1763313376662,0.405504,3085.7,3082.3,0.77418903]
[1763313376864,0.405504,3085.5,3082.3,0.1041]
[1763313377120,0.405504,3085.2,3082.2,0.1041]
[1763313377590,0.67,3085.1,3082.2,0.1041]
[1763313377903,0.67,3085.1,3082.4,1.2516536]
[1763313378199,0.4725,3085.7,3083.0,1.9798904]
[1763313378397,0.4725,3086.0,3083.1,1.07613231]
[1763313378701,0.4725,3086.0,3083.3,0.405504]
[1763313378997,0.4725,3086.0,3083.4,0.405504]
[1763313379198,0.4725,3086.5,3083.6,1.2516536]
[1763313379362,0.4725,3086.5,3083.8,0.405504]
[1763313379566,0.4725,3086.5,3084.0,0.405504]
[1763313379803,0.4725,3086.5,3084.1,0.67062831]
[1763313379998,0.4725,3086.5,3084.0,0.1041]
[1763313379999,0.405504,3086.4,3084.0,0.1041]
[1763313380199,0.405504,3086.4,3084.0,3.34661956]
[1763313380402,0.405504,3086.2,3083.3,0.9502496]
[1763313380706,0.405504,3085.9,3082.5,0.23853944]
[1763313380909,0.405504,3085.9,3081.9,0.4725]
[1763313380910,0.405504,3085.1,3081.9,0.4725]
[1763313381062,0.405504,3085.1,3081.1,1.93218364]
[1763313381063,0.405504,3084.7,3081.4,0.1041]
[1763313381262,0.405504,3084.7,3081.4,0.43905888]
[1763313381462,0.67,3085.0,3081.4,0.43905888]
[1763313381463,0.4725,3084.6,3081.7,0.8461496]
[1763313381705,0.405504,3084.5,3082.0,0.8461496]
[1763313382010,0.405504,3084.5,3082.1,0.67389168]
[1763313382303,0.405504,3084.3,3082.0,6.48926344]
[1763313382502,0.405504,3084.3,3082.1,2.46725429]
[1763313382729,0.1975,3085.0,3082.1,2.46725429]
[1763313382730,0.405504,3084.1,3082.2,0.67417715]
[1763313382929,0.405504,3084.1,3081.8,3.2448569]
[1763313383115,0.405504,3084.1,3081.5,0.8461496]
[1763313383116,0.405504,3083.9,3081.9,0.67426364]
[1763313383306,0.405504,3083.7,3081.5,0.9502496]
[1763313383493,0.405504,3083.7,3081.6,0.67483261]
[1763313383689,0.405504,3083.5,3081.6,0.19600411]
[1763313383939,0.1975,3083.8,3081.6,0.19600411]
[1763313383940,0.4725,3083.4,3081.6,0.19600411]
[1763313384132,0.1975,3083.8,3081.9,1.1337408]
[1763313384439,0.1975,3083.8,3082.0,0.78790585]
[1763313384597,0.1975,3083.8,3082.1,0.78790585]
[1763313384798,0.1975,3083.8,3082.2,0.67590585]
[1763313384992,0.405504,3083.7,3081.7,0.8461496]
[1763313385239,0.405504,3083.7,3081.8,0.67655962]
[1763313385539,0.405504,3083.7,3081.8,0.78855962]
[1763313385723,0.405504,3083.7,3081.3,1.15611464]
[1763313385724,0.405504,3083.7,3081.9,0.67655962]
[1763313385923,0.405504,3083.7,3081.4,0.9581496]
[1763313386130,0.405504,3083.5,3081.5,0.67800038]
[1763313386314,0.405504,3083.5,3081.1,1.0452496]
[1763313386315,0.405504,3083.5,3081.1,0.001]
[1763313386647,0.405504,3083.3,3081.1,0.001]
[1763313386826,0.1975,3081.2,3080.8,0.001]
[1763313387194,0.405504,3081.0,3080.5,0.001]